[Event "Early-Titled-Tuesday-Blitz-May-28-2024"]
[Site "Chess.com"]
[Date "2024.05.28"]
[Round "8"]
[White "abelmat"]
[Black "gabduschew"]
[Result "0-1"]
[WhiteElo "2064"]
[BlackElo "2314"]
[TimeControl "180+1"]
[EndTime "9:30:36 PDT"]
[Termination "gabduschew won on time"]

1. d4 {[%clk 0:03:00.9]} 1... Nf6 {[%clk 0:02:44.7]} 2. c4 {[%clk 0:03:01.2]}
2... e5 {[%clk 0:02:44.9]} 3. dxe5 {[%clk 0:02:59.5]} 3... Ng4 {[%clk
0:02:44.3]} 4. Nf3 {[%clk 0:02:58.5]} 4... Nc6 {[%clk 0:02:41.5]} 5. Bg5 {[%clk
0:02:57.8]} 5... Be7 {[%clk 0:02:38.2]} 6. Bf4 {[%clk 0:02:58.2]} 6... Bb4+
{[%clk 0:02:34.9]} 7. Nbd2 {[%clk 0:02:56.3]} 7... Qe7 {[%clk 0:02:32.2]} 8. e3
{[%clk 0:02:53.2]} 8... Ngxe5 {[%clk 0:02:28.4]} 9. Nxe5 {[%clk 0:02:52.1]} 9...
Nxe5 {[%clk 0:02:29.3]} 10. Be2 {[%clk 0:02:52.1]} 10... O-O {[%clk 0:02:25.6]}
11. O-O {[%clk 0:02:52.4]} 11... Bxd2 {[%clk 0:02:25.6]} 12. Qxd2 {[%clk
0:02:50.3]} 12... d6 {[%clk 0:02:26]} 13. h3 {[%clk 0:02:44.3]} 13... Be6 {[%clk
0:02:08.4]} 14. Rac1 {[%clk 0:02:43.2]} 14... Rfd8 {[%clk 0:02:04.5]} 15. Qc3
{[%clk 0:02:42.2]} 15... Bf5 {[%clk 0:02:00.1]} 16. c5 {[%clk 0:02:36.6]} 16...
Rac8 {[%clk 0:01:40.7]} 17. b4 {[%clk 0:02:24.3]} 17... Ng6 {[%clk 0:01:20.7]}
18. Bg3 {[%clk 0:02:18.3]} 18... dxc5 {[%clk 0:01:20.8]} 19. bxc5 {[%clk
0:02:16.2]} 19... Be4 {[%clk 0:01:17]} 20. Rfd1 {[%clk 0:02:13.7]} 20... Bc6
{[%clk 0:01:12.1]} 21. Bc4 {[%clk 0:01:52.5]} 21... Rxd1+ {[%clk 0:00:52.4]} 22.
Rxd1 {[%clk 0:01:49.5]} 22... Rd8 {[%clk 0:00:53.3]} 23. Rd4 {[%clk 0:01:44.5]}
23... h5 {[%clk 0:00:47.1]} 24. Qd3 {[%clk 0:01:31.3]} 24... Rxd4 {[%clk
0:00:44.2]} 25. Qxd4 {[%clk 0:01:13.7]} 25... h4 {[%clk 0:00:44]} 26. Bh2 {[%clk
0:01:00.4]} 26... Qg5 {[%clk 0:00:43.3]} 27. Bf1 {[%clk 0:00:57.9]} 27... Nf8
{[%clk 0:00:30.7]} 28. Bxc7 {[%clk 0:00:53.4]} 28... Ne6 {[%clk 0:00:30.6]} 29.
Qe5 {[%clk 0:00:28.1]} 29... Qg6 {[%clk 0:00:24.2]} 30. a3 {[%clk 0:00:16.3]}
30... Qb1 {[%clk 0:00:19.5]} 31. a4 {[%clk 0:00:08.9]} 31... Bxa4 {[%clk
0:00:15.6]} 32. Bd6 {[%clk 0:00:04.9]} 32... Bb5 {[%clk 0:00:15.3]} 33. Kh2
{[%clk 0:00:04.2]} 33... Qxf1 {[%clk 0:00:13.9]} 34. Qh5 {[%clk 0:00:03.2]}
34... Bc6 {[%clk 0:00:07.7]} 35. f3 {[%clk 0:00:03.1]} 35... g6 {[%clk
0:00:06.4]} 36. Qg4 {[%clk 0:00:02.6]} 36... Qf2 {[%clk 0:00:04.2]} 37. e4
{[%clk 0:00:02.2]} 37... Qd4 {[%clk 0:00:03.5]} 38. Bf4 {[%clk 0:00:00.4]} 38...
a5 {[%clk 0:00:02.8]} 0-1

[Event "Early-Titled-Tuesday-Blitz-May-28-2024"]
[Site "Chess.com"]
[Date "2024.05.28"]
[Round "8"]
[White "FLYD"]
[Black "Fore_Man"]
[Result "1-0"]
[WhiteElo "2067"]
[BlackElo "2206"]
[TimeControl "180+1"]
[EndTime "9:30:36 PDT"]
[Termination "FLYD won on time"]

1. e4 {[%clk 0:02:28.5]} 1... e6 {[%clk 0:02:57.6]} 2. d4 {[%clk 0:02:12.1]}
2... d5 {[%clk 0:02:56.4]} 3. Nc3 {[%clk 0:02:08.8]} 3... Bb4 {[%clk 0:02:55.7]}
4. Ne2 {[%clk 0:01:49.7]} 4... dxe4 {[%clk 0:02:53.8]} 5. a3 {[%clk 0:01:50.2]}
5... Be7 {[%clk 0:02:43.2]} 6. Nxe4 {[%clk 0:01:50]} 6... Nf6 {[%clk 0:02:42.9]}
7. Nxf6+ {[%clk 0:01:49.6]} 7... Bxf6 {[%clk 0:02:43.8]} 8. c3 {[%clk
0:01:50.2]} 8... b6 {[%clk 0:02:39.5]} 9. Be3 {[%clk 0:01:41.1]} 9... Bb7 {[%clk
0:02:35.5]} 10. Nf4 {[%clk 0:01:41.2]} 10... Nd7 {[%clk 0:02:31]} 11. Bb5 {[%clk
0:01:36.1]} 11... a6 {[%clk 0:02:18]} 12. Be2 {[%clk 0:01:09.2]} 12... O-O
{[%clk 0:02:11.6]} 13. Bf3 {[%clk 0:01:09.2]} 13... Bxf3 {[%clk 0:02:09.9]} 14.
Qxf3 {[%clk 0:01:10.1]} 14... c5 {[%clk 0:02:09.3]} 15. dxc5 {[%clk 0:01:00.9]}
15... Nxc5 {[%clk 0:02:06.9]} 16. O-O {[%clk 0:01:01.2]} 16... Qc7 {[%clk
0:02:03.2]} 17. Rad1 {[%clk 0:01:00.8]} 17... Rad8 {[%clk 0:01:56.4]} 18. Nh5
{[%clk 0:01:00.6]} 18... Be5 {[%clk 0:01:45.4]} 19. g3 {[%clk 0:01:00.5]} 19...
Na4 {[%clk 0:01:19.2]} 20. Qg4 {[%clk 0:00:55.8]} 20... Nxb2 {[%clk 0:01:02.9]}
21. Rxd8 {[%clk 0:00:55.1]} 21... Rxd8 {[%clk 0:00:58]} 22. Bf4 {[%clk 0:00:53]}
22... g6 {[%clk 0:00:47.7]} 23. Nf6+ {[%clk 0:00:47.2]} 23... Kg7 {[%clk
0:00:38.2]} 24. Nh5+ {[%clk 0:00:47]} 24... Kh8 {[%clk 0:00:32.3]} 25. Nf6
{[%clk 0:00:39.6]} 25... Bxf4 {[%clk 0:00:29.4]} 26. gxf4 {[%clk 0:00:34.6]}
26... Kg7 {[%clk 0:00:15.4]} 27. Nh5+ {[%clk 0:00:33.4]} 27... Kh8 {[%clk
0:00:12.4]} 28. Nf6 {[%clk 0:00:33.6]} 28... Qe7 {[%clk 0:00:10.3]} 29. Ne4
{[%clk 0:00:28.3]} 29... Nc4 {[%clk 0:00:08.7]} 30. Ng5 {[%clk 0:00:28.1]} 30...
Kg7 {[%clk 0:00:07.2]} 31. Re1 {[%clk 0:00:25.3]} 31... Rd3 {[%clk 0:00:05.8]}
32. Nxe6+ {[%clk 0:00:12.6]} 32... fxe6 {[%clk 0:00:05.7]} 33. Rxe6 {[%clk
0:00:13.5]} 33... Qf7 {[%clk 0:00:04.6]} 34. Re4 {[%clk 0:00:10]} 34... Rxc3
{[%clk 0:00:03.5]} 35. Qg5 {[%clk 0:00:10]} 35... Rc1+ {[%clk 0:00:03.1]} 36.
Kg2 {[%clk 0:00:10.1]} 36... h6 {[%clk 0:00:03.3]} 37. Qh4 {[%clk 0:00:09.9]}
37... Qb7 {[%clk 0:00:01]} 38. f3 {[%clk 0:00:09.7]} 38... Nd2 {[%clk
0:00:01.6]} 39. Re7+ {[%clk 0:00:09.5]} 39... Qxe7 {[%clk 0:00:02.3]} 40. Qxe7+
{[%clk 0:00:10.3]} 40... Kg8 {[%clk 0:00:02.8]} 41. Qe6+ {[%clk 0:00:10.2]}
41... Kg7 {[%clk 0:00:02.7]} 42. Qd7+ {[%clk 0:00:10.7]} 42... Kg8 {[%clk
0:00:03.6]} 43. Qxd2 {[%clk 0:00:10.9]} 43... Ra1 {[%clk 0:00:04.2]} 44. Qd5+
{[%clk 0:00:11]} 1-0

[Event "Early-Titled-Tuesday-Blitz-May-28-2024"]
[Site "Chess.com"]
[Date "2024.05.28"]
[Round "8"]
[White "eagleclaw07"]
[Black "Chopper1905"]
[Result "1-0"]
[WhiteElo "2862"]
[BlackElo "2956"]
[TimeControl "180+1"]
[EndTime "9:30:37 PDT"]
[Termination "eagleclaw07 won by checkmate"]

1. d4 {[%clk 0:03:00.9]} 1... Nf6 {[%clk 0:02:59.7]} 2. c4 {[%clk 0:03:01.5]}
2... e6 {[%clk 0:03:00.3]} 3. g3 {[%clk 0:03:01.6]} 3... c5 {[%clk 0:02:58.4]}
4. d5 {[%clk 0:03:01.7]} 4... exd5 {[%clk 0:02:58.3]} 5. cxd5 {[%clk 0:03:02.6]}
5... d6 {[%clk 0:02:59.1]} 6. Nc3 {[%clk 0:03:03.2]} 6... g6 {[%clk 0:02:59.6]}
7. Nf3 {[%clk 0:03:03.9]} 7... Bg7 {[%clk 0:03:00.2]} 8. Bg2 {[%clk 0:03:04.6]}
8... O-O {[%clk 0:03:00.8]} 9. O-O {[%clk 0:03:05.4]} 9... Re8 {[%clk
0:02:58.6]} 10. Bf4 {[%clk 0:03:05.9]} 10... Bg4 {[%clk 0:02:55.6]} 11. h3
{[%clk 0:03:05]} 11... Bxf3 {[%clk 0:02:55.9]} 12. Bxf3 {[%clk 0:03:05.9]} 12...
Nbd7 {[%clk 0:02:49.3]} 13. Qc2 {[%clk 0:02:49.7]} 13... Ne5 {[%clk 0:02:46.3]}
14. Bg2 {[%clk 0:02:50]} 14... Rc8 {[%clk 0:02:31.7]} 15. g4 {[%clk 0:02:43]}
15... h5 {[%clk 0:02:26.4]} 16. g5 {[%clk 0:02:41.7]} 16... Nh7 {[%clk
0:02:26.3]} 17. h4 {[%clk 0:02:40.5]} 17... f6 {[%clk 0:02:20.3]} 18. Bxe5
{[%clk 0:02:20.6]} 18... Rxe5 {[%clk 0:02:19.8]} 19. f4 {[%clk 0:02:20.8]} 19...
Re3 {[%clk 0:02:15.9]} 20. Qxg6 {[%clk 0:02:19.7]} 20... Qe8 {[%clk 0:02:11.6]}
21. Qf5 {[%clk 0:01:55]} 21... fxg5 {[%clk 0:02:11]} 22. hxg5 {[%clk 0:01:55.9]}
22... Rc7 {[%clk 0:01:59.1]} 23. Ne4 {[%clk 0:01:29.5]} 23... Rxe2 {[%clk
0:01:57]} 24. Rae1 {[%clk 0:01:28.5]} 24... Rxe1 {[%clk 0:01:46.1]} 25. Rxe1
{[%clk 0:01:29.4]} 25... Re7 {[%clk 0:01:45.1]} 26. Kh2 {[%clk 0:01:18.4]} 26...
Nf8 {[%clk 0:01:43.2]} 27. Nxd6 {[%clk 0:01:14]} 27... Qd7 {[%clk 0:01:36]} 28.
Qxd7 {[%clk 0:00:43.9]} 28... Rxd7 {[%clk 0:01:35.3]} 29. Nc4 {[%clk 0:00:44.7]}
29... Ng6 {[%clk 0:01:26.8]} 30. Bh3 {[%clk 0:00:27.1]} 30... Rd8 {[%clk
0:01:22.7]} 31. Be6+ {[%clk 0:00:27.1]} 31... Kh8 {[%clk 0:01:07.6]} 32. f5
{[%clk 0:00:26.3]} 32... b5 {[%clk 0:01:08.1]} 33. Na5 {[%clk 0:00:17.5]} 33...
Nf4 {[%clk 0:01:08.5]} 34. f6 {[%clk 0:00:14.1]} 34... Bf8 {[%clk 0:01:08.7]}
35. Kg3 {[%clk 0:00:11.2]} 35... Nxd5 {[%clk 0:00:42.2]} 36. Rd1 {[%clk
0:00:06.1]} 36... Bd6+ {[%clk 0:00:42.2]} 37. Kh4 {[%clk 0:00:05.7]} 37... Nc7
{[%clk 0:00:34]} 38. Bb3 {[%clk 0:00:01.9]} 38... c4 {[%clk 0:00:34]} 39. Nb7
{[%clk 0:00:02.3]} 39... Rg8 {[%clk 0:00:02.9]} 40. Nxd6 {[%clk 0:00:02.1]}
40... cxb3 {[%clk 0:00:03.8]} 41. axb3 {[%clk 0:00:02.6]} 41... Ne6 {[%clk
0:00:04.7]} 42. Nf7+ {[%clk 0:00:02.9]} 42... Kh7 {[%clk 0:00:05]} 43. Kxh5
{[%clk 0:00:03.3]} 43... Nf4+ {[%clk 0:00:03.7]} 44. Kg4 {[%clk 0:00:04]} 44...
Ng2 {[%clk 0:00:02.6]} 45. Rh1+ {[%clk 0:00:02.8]} 45... Kg6 {[%clk 0:00:03.1]}
46. Ne5# {[%clk 0:00:03.6]} 1-0

[Event "Early-Titled-Tuesday-Blitz-May-28-2024"]
[Site "Chess.com"]
[Date "2024.05.28"]
[Round "8"]
[White "wonderfultime"]
[Black "ChessShop"]
[Result "1-0"]
[WhiteElo "3003"]
[BlackElo "2667"]
[TimeControl "180+1"]
[EndTime "9:30:37 PDT"]
[Termination "wonderfultime won on time"]

1. d4 {[%clk 0:03:00.9]} 1... d6 {[%clk 0:02:59.5]} 2. e4 {[%clk 0:02:59.9]}
2... Nf6 {[%clk 0:03:00.1]} 3. Nc3 {[%clk 0:02:59.6]} 3... e5 {[%clk 0:03:00.7]}
4. Bc4 {[%clk 0:02:59.6]} 4... exd4 {[%clk 0:02:59.1]} 5. Qxd4 {[%clk
0:02:59.6]} 5... Be7 {[%clk 0:02:58.4]} 6. Nf3 {[%clk 0:02:58.5]} 6... Nc6
{[%clk 0:02:58.5]} 7. Qe3 {[%clk 0:02:55.4]} 7... Ng4 {[%clk 0:02:51.8]} 8. Qf4
{[%clk 0:02:52.2]} 8... Nge5 {[%clk 0:02:51.8]} 9. Bb3 {[%clk 0:02:47.8]} 9...
O-O {[%clk 0:02:49.5]} 10. O-O {[%clk 0:02:46.6]} 10... Nxf3+ {[%clk 0:02:49.4]}
11. Qxf3 {[%clk 0:02:45.4]} 11... Nd4 {[%clk 0:02:49.5]} 12. Qg3 {[%clk
0:02:45.2]} 12... Bh4 {[%clk 0:02:47.1]} 13. Qd3 {[%clk 0:02:42.5]} 13... Nxb3
{[%clk 0:02:46.6]} 14. axb3 {[%clk 0:02:43.4]} 14... a6 {[%clk 0:02:43.2]} 15.
Be3 {[%clk 0:02:41.9]} 15... Bf6 {[%clk 0:02:42.2]} 16. Rad1 {[%clk 0:02:39.8]}
16... Bd7 {[%clk 0:02:42.1]} 17. f4 {[%clk 0:02:37.2]} 17... Bc6 {[%clk
0:02:40.2]} 18. Bd4 {[%clk 0:02:34]} 18... Re8 {[%clk 0:02:33.1]} 19. Rfe1
{[%clk 0:02:32.1]} 19... Bxd4+ {[%clk 0:02:32.2]} 20. Qxd4 {[%clk 0:02:33]}
20... Qh4 {[%clk 0:02:32]} 21. Qf2 {[%clk 0:02:32.2]} 21... Qxf2+ {[%clk
0:02:22.2]} 22. Kxf2 {[%clk 0:02:33.1]} 22... Re7 {[%clk 0:02:22.6]} 23. Re3
{[%clk 0:02:24.3]} 23... Rae8 {[%clk 0:02:22.1]} 24. Rde1 {[%clk 0:02:24.8]}
24... h5 {[%clk 0:02:10.5]} 25. g3 {[%clk 0:02:22.6]} 25... f6 {[%clk
0:02:09.9]} 26. h3 {[%clk 0:02:21.4]} 26... Kf7 {[%clk 0:02:09.6]} 27. g4 {[%clk
0:02:19.5]} 27... hxg4 {[%clk 0:02:08.1]} 28. hxg4 {[%clk 0:02:20.4]} 28... Rh8
{[%clk 0:02:08]} 29. Kg3 {[%clk 0:02:20.4]} 29... Rhe8 {[%clk 0:01:53.6]} 30.
Kf3 {[%clk 0:02:13.6]} 30... Rh8 {[%clk 0:01:52.3]} 31. Kg3 {[%clk 0:02:13]}
31... Rhe8 {[%clk 0:01:51.9]} 32. f5 {[%clk 0:02:07.6]} 32... d5 {[%clk
0:01:51]} 33. Rd1 {[%clk 0:01:55]} 33... dxe4 {[%clk 0:01:41.6]} 34. Kf4 {[%clk
0:01:54.8]} 34... a5 {[%clk 0:01:31.1]} 35. Ne2 {[%clk 0:01:49.8]} 35... Rd7
{[%clk 0:01:22.7]} 36. Rxd7+ {[%clk 0:01:41.5]} 36... Bxd7 {[%clk 0:01:23.6]}
37. Rxe4 {[%clk 0:01:40.6]} 37... Rxe4+ {[%clk 0:01:24.3]} 38. Kxe4 {[%clk
0:01:41.5]} 38... Bc6+ {[%clk 0:01:24.7]} 39. Kf4 {[%clk 0:01:42.2]} 39... Ke7
{[%clk 0:01:11.4]} 40. Nd4 {[%clk 0:01:31.7]} 40... Kd6 {[%clk 0:01:03.2]} 41.
g5 {[%clk 0:01:25.6]} 41... fxg5+ {[%clk 0:00:58.9]} 42. Kxg5 {[%clk 0:01:26.5]}
42... Be4 {[%clk 0:00:57.8]} 43. Kf4 {[%clk 0:00:57.8]} 43... Bd5 {[%clk
0:00:33.8]} 44. Nb5+ {[%clk 0:00:46.2]} 44... Kc6 {[%clk 0:00:27.5]} 45. Ke5
{[%clk 0:00:46.8]} 45... Bf7 {[%clk 0:00:23.8]} 46. Nd4+ {[%clk 0:00:43]} 46...
Kd7 {[%clk 0:00:13.8]} 47. Nf3 {[%clk 0:00:40]} 47... Ke7 {[%clk 0:00:12.1]} 48.
Ng5 {[%clk 0:00:38.1]} 48... Bg8 {[%clk 0:00:12.2]} 49. Ne4 {[%clk 0:00:35.6]}
49... b6 {[%clk 0:00:11.9]} 50. Nf2 {[%clk 0:00:34.9]} 50... Bf7 {[%clk
0:00:10.1]} 51. Nd3 {[%clk 0:00:35.5]} 51... Bh5 {[%clk 0:00:09.7]} 52. b4
{[%clk 0:00:35.4]} 52... axb4 {[%clk 0:00:07.7]} 53. Nxb4 {[%clk 0:00:36.3]}
53... Kd7 {[%clk 0:00:06.5]} 54. Nd5 {[%clk 0:00:34.9]} 54... Bd1 {[%clk
0:00:06.7]} 55. c3 {[%clk 0:00:34.4]} 55... b5 {[%clk 0:00:06.5]} 56. Nf4 {[%clk
0:00:34.9]} 56... Ke7 {[%clk 0:00:05]} 57. Ne6 {[%clk 0:00:35.3]} 57... c6
{[%clk 0:00:01.6]} 58. Nxg7 {[%clk 0:00:35.3]} 58... Bc2 {[%clk 0:00:01.7]} 59.
Ne6 {[%clk 0:00:35.8]} 59... Bd3 {[%clk 0:00:01]} 60. f6+ {[%clk 0:00:33.5]}
60... Kf7 {[%clk 0:00:01.3]} 61. Nd8+ {[%clk 0:00:34]} 1-0

[Event "Early-Titled-Tuesday-Blitz-May-28-2024"]
[Site "Chess.com"]
[Date "2024.05.28"]
[Round "8"]
[White "KhBegmuratov"]
[Black "Alex_Sahakyan2006"]
[Result "1-0"]
[WhiteElo "2708"]
[BlackElo "2833"]
[TimeControl "180+1"]
[EndTime "9:30:38 PDT"]
[Termination "KhBegmuratov won by checkmate"]

1. e4 {[%clk 0:03:00.9]} 1... e5 {[%clk 0:02:58.3]} 2. Nf3 {[%clk 0:03:00.8]}
2... Nc6 {[%clk 0:02:59]} 3. Bc4 {[%clk 0:02:55.4]} 3... Nf6 {[%clk 0:02:57.4]}
4. d3 {[%clk 0:02:55.6]} 4... Bc5 {[%clk 0:02:56.2]} 5. O-O {[%clk 0:02:55.3]}
5... d6 {[%clk 0:02:56.1]} 6. c3 {[%clk 0:02:55.2]} 6... O-O {[%clk 0:02:55.1]}
7. a4 {[%clk 0:02:55]} 7... a6 {[%clk 0:02:54.1]} 8. h3 {[%clk 0:02:55]} 8...
Be6 {[%clk 0:02:53.1]} 9. Bxe6 {[%clk 0:02:45.8]} 9... fxe6 {[%clk 0:02:54]} 10.
b4 {[%clk 0:02:46]} 10... Bb6 {[%clk 0:02:51.7]} 11. Nbd2 {[%clk 0:02:42.2]}
11... d5 {[%clk 0:02:51.1]} 12. Re1 {[%clk 0:02:15.5]} 12... Re8 {[%clk
0:02:41.3]} 13. Qc2 {[%clk 0:02:11.6]} 13... d4 {[%clk 0:02:31.7]} 14. Nc4
{[%clk 0:02:11.4]} 14... dxc3 {[%clk 0:02:24.3]} 15. Nxb6 {[%clk 0:02:10]} 15...
cxb6 {[%clk 0:02:16.5]} 16. Qxc3 {[%clk 0:02:10.3]} 16... Rc8 {[%clk 0:02:10.7]}
17. Nxe5 {[%clk 0:01:33.7]} 17... Nd4 {[%clk 0:02:08.9]} 18. Qd2 {[%clk
0:01:03.8]} 18... Nb3 {[%clk 0:01:56.6]} 19. Qb2 {[%clk 0:00:57.4]} 19... Nxa1
{[%clk 0:01:55.4]} 20. Qxa1 {[%clk 0:00:58.3]} 20... Nd7 {[%clk 0:01:27.3]} 21.
Nc4 {[%clk 0:00:55.2]} 21... Qe7 {[%clk 0:01:23.4]} 22. b5 {[%clk 0:00:41.5]}
22... axb5 {[%clk 0:01:15.2]} 23. axb5 {[%clk 0:00:41.4]} 23... Nc5 {[%clk
0:00:41.8]} 24. Nxb6 {[%clk 0:00:40.4]} 24... Rcd8 {[%clk 0:00:30.2]} 25. Ba3
{[%clk 0:00:40.1]} 25... Rxd3 {[%clk 0:00:24.6]} 26. Qc1 {[%clk 0:00:24.2]}
26... Nb3 {[%clk 0:00:18.8]} 27. Qc2 {[%clk 0:00:18.1]} 27... Qd8 {[%clk
0:00:17]} 28. Nc4 {[%clk 0:00:18.3]} 28... Qd4 {[%clk 0:00:16]} 29. Bb2 {[%clk
0:00:16.5]} 29... Qd8 {[%clk 0:00:12.1]} 30. Ne5 {[%clk 0:00:15.9]} 30... Rd2
{[%clk 0:00:06.9]} 31. Qxb3 {[%clk 0:00:16.2]} 31... Qf6 {[%clk 0:00:06]} 32.
Rf1 {[%clk 0:00:14.8]} 32... Qf4 {[%clk 0:00:03.6]} 33. Bc1 {[%clk 0:00:13]}
33... Qxe5 {[%clk 0:00:02.3]} 34. Bxd2 {[%clk 0:00:13.4]} 34... Qxe4 {[%clk
0:00:03.2]} 35. Qe3 {[%clk 0:00:13]} 35... Qd5 {[%clk 0:00:03.3]} 36. b6 {[%clk
0:00:13.7]} 36... Rc8 {[%clk 0:00:02.8]} 37. Bc3 {[%clk 0:00:13]} 37... Rc4
{[%clk 0:00:03.3]} 38. Re1 {[%clk 0:00:11.9]} 38... Qc6 {[%clk 0:00:02.8]} 39.
Be5 {[%clk 0:00:10]} 39... h6 {[%clk 0:00:02.3]} 40. Qg3 {[%clk 0:00:10.1]}
40... g5 {[%clk 0:00:02.5]} 41. Qd3 {[%clk 0:00:09.1]} 41... Kf7 {[%clk
0:00:01]} 42. Qh7+ {[%clk 0:00:09.1]} 42... Ke8 {[%clk 0:00:01.6]} 43. Rd1
{[%clk 0:00:09.5]} 43... Rc5 {[%clk 0:00:01.3]} 44. Qg8+ {[%clk 0:00:09.6]}
44... Ke7 {[%clk 0:00:01.9]} 45. Qg7+ {[%clk 0:00:09.7]} 45... Ke8 {[%clk
0:00:02.5]} 46. Bf6 {[%clk 0:00:10.3]} 46... Rd5 {[%clk 0:00:01.6]} 47. Qe7#
{[%clk 0:00:10.2]} 1-0

[Event "Early-Titled-Tuesday-Blitz-May-28-2024"]
[Site "Chess.com"]
[Date "2024.05.28"]
[Round "8"]
[White "Losingexperience"]
[Black "edgarhay012"]
[Result "0-1"]
[WhiteElo "2759"]
[BlackElo "2639"]
[TimeControl "180+1"]
[EndTime "9:30:38 PDT"]
[Termination "edgarhay012 won on time"]

1. e4 {[%clk 0:03:00.9]} 1... c5 {[%clk 0:02:57.6]} 2. Nf3 {[%clk 0:03:00.2]}
2... e6 {[%clk 0:02:58.1]} 3. d4 {[%clk 0:03:00.3]} 3... cxd4 {[%clk 0:02:59]}
4. Nxd4 {[%clk 0:03:01]} 4... Nf6 {[%clk 0:02:59.6]} 5. Nc3 {[%clk 0:03:01]}
5... Nc6 {[%clk 0:03:00.2]} 6. Ndb5 {[%clk 0:03:00.2]} 6... Bb4 {[%clk
0:02:59.2]} 7. a3 {[%clk 0:03:00.1]} 7... Bxc3+ {[%clk 0:02:59.2]} 8. Nxc3
{[%clk 0:03:01]} 8... d5 {[%clk 0:02:59.8]} 9. exd5 {[%clk 0:03:01.4]} 9... exd5
{[%clk 0:03:00.7]} 10. Bd3 {[%clk 0:03:02]} 10... O-O {[%clk 0:03:00.2]} 11. O-O
{[%clk 0:03:02.3]} 11... h6 {[%clk 0:02:51.6]} 12. Re1 {[%clk 0:02:57.8]} 12...
d4 {[%clk 0:02:44.6]} 13. Ne4 {[%clk 0:02:55.3]} 13... Bf5 {[%clk 0:02:41.3]}
14. Ng3 {[%clk 0:02:27.3]} 14... Bxd3 {[%clk 0:02:36.9]} 15. Qxd3 {[%clk
0:02:28.2]} 15... Qd5 {[%clk 0:02:21.9]} 16. b4 {[%clk 0:02:18.1]} 16... Rfe8
{[%clk 0:01:54.7]} 17. Bb2 {[%clk 0:02:13.4]} 17... Rxe1+ {[%clk 0:00:40.7]} 18.
Rxe1 {[%clk 0:02:14.3]} 18... Rd8 {[%clk 0:00:41.2]} 19. Nf5 {[%clk 0:02:04.4]}
19... a6 {[%clk 0:00:08.8]} 20. h3 {[%clk 0:01:53.8]} 20... Rd7 {[%clk
0:00:07.9]} 21. Bc1 {[%clk 0:01:50.9]} 21... Ne5 {[%clk 0:00:06.7]} 22. Qg3
{[%clk 0:00:54.4]} 22... Ng6 {[%clk 0:00:06.7]} 23. Nh4 {[%clk 0:00:44.8]} 23...
Nxh4 {[%clk 0:00:06.9]} 24. Qxh4 {[%clk 0:00:45.7]} 24... Qf5 {[%clk 0:00:07.5]}
25. Re2 {[%clk 0:00:34.8]} 25... Rc7 {[%clk 0:00:04.8]} 26. Qg3 {[%clk
0:00:28.8]} 26... Rxc2 {[%clk 0:00:04.4]} 27. Bxh6 {[%clk 0:00:27.9]} 27... Nh5
{[%clk 0:00:03.9]} 28. Qb8+ {[%clk 0:00:21.6]} 28... Kh7 {[%clk 0:00:03.3]} 29.
Rxc2 {[%clk 0:00:11.4]} 29... Qxc2 {[%clk 0:00:04.2]} 30. Bg5 {[%clk 0:00:08.7]}
30... f6 {[%clk 0:00:03.8]} 31. Bf4 {[%clk 0:00:04.8]} 31... d3 {[%clk 0:00:03]}
32. Qd6 {[%clk 0:00:03.6]} 32... Nxf4 {[%clk 0:00:02.7]} 33. Qxf4 {[%clk
0:00:04.5]} 33... d2 {[%clk 0:00:03.4]} 34. Qh4+ {[%clk 0:00:04.7]} 34... Kg8
{[%clk 0:00:04.1]} 35. Kh2 {[%clk 0:00:04.8]} 35... d1=Q {[%clk 0:00:04.7]} 36.
Qf4 {[%clk 0:00:05]} 36... Qd8 {[%clk 0:00:05.2]} 37. Qf5 {[%clk 0:00:05.1]}
37... Qcc7+ {[%clk 0:00:05.6]} 38. f4 {[%clk 0:00:04.7]} 38... Qcd7 {[%clk
0:00:06.3]} 39. Qe4 {[%clk 0:00:03.7]} 39... Q7e7 {[%clk 0:00:06.4]} 40. Qc4+
{[%clk 0:00:03.5]} 40... Qf7 {[%clk 0:00:07]} 41. Qe4 {[%clk 0:00:03.3]} 41...
Qdc7 {[%clk 0:00:07.1]} 42. Kg3 {[%clk 0:00:03.1]} 42... g5 {[%clk 0:00:07.4]}
0-1

[Event "Early-Titled-Tuesday-Blitz-May-28-2024"]
[Site "Chess.com"]
[Date "2024.05.28"]
[Round "8"]
[White "BarloNadera"]
[Black "amanjazu"]
[Result "0-1"]
[WhiteElo "2102"]
[BlackElo "2572"]
[TimeControl "180+1"]
[EndTime "9:30:45 PDT"]
[Termination "amanjazu won on time"]

1. d4 {[%clk 0:03:00.9]} 1... f5 {[%clk 0:02:57.5]} 2. g3 {[%clk 0:02:57.8]}
2... Nf6 {[%clk 0:02:57.9]} 3. Bg2 {[%clk 0:02:56.1]} 3... g6 {[%clk 0:02:58.3]}
4. c4 {[%clk 0:02:53.2]} 4... Bg7 {[%clk 0:02:58.5]} 5. Qb3 {[%clk 0:02:49.6]}
5... c6 {[%clk 0:02:52.8]} 6. Nc3 {[%clk 0:02:47.4]} 6... O-O {[%clk 0:02:52.2]}
7. Nf3 {[%clk 0:02:35.7]} 7... d6 {[%clk 0:02:50.6]} 8. Bf4 {[%clk 0:02:34.3]}
8... Qb6 {[%clk 0:02:46.5]} 9. O-O {[%clk 0:02:20.3]} 9... Na6 {[%clk
0:02:42.3]} 10. Rfd1 {[%clk 0:02:17.1]} 10... h6 {[%clk 0:02:36.1]} 11. h4
{[%clk 0:02:15.4]} 11... Kh8 {[%clk 0:02:32.1]} 12. Qc2 {[%clk 0:02:01.7]} 12...
Be6 {[%clk 0:02:21.7]} 13. b3 {[%clk 0:01:59.2]} 13... Nh5 {[%clk 0:02:07.2]}
14. Be3 {[%clk 0:01:54.6]} 14... Qd8 {[%clk 0:02:06]} 15. Qd2 {[%clk 0:01:47.7]}
15... f4 {[%clk 0:01:56]} 16. gxf4 {[%clk 0:01:45.6]} 16... Bg4 {[%clk
0:01:55.2]} 17. Nh2 {[%clk 0:01:35.4]} 17... Bf5 {[%clk 0:01:53.8]} 18. f3
{[%clk 0:01:33.3]} 18... Nc7 {[%clk 0:01:52.2]} 19. Bf2 {[%clk 0:01:32.9]} 19...
e5 {[%clk 0:01:37.3]} 20. fxe5 {[%clk 0:01:25.9]} 20... dxe5 {[%clk 0:01:38.2]}
21. d5 {[%clk 0:01:24.6]} 21... cxd5 {[%clk 0:01:34.5]} 22. cxd5 {[%clk
0:01:22.8]} 22... Nf4 {[%clk 0:01:32.4]} 23. e3 {[%clk 0:01:13.4]} 23... Nh3+
{[%clk 0:01:18]} 24. Bxh3 {[%clk 0:01:06.5]} 24... Bxh3 {[%clk 0:01:18.9]} 25.
e4 {[%clk 0:01:04.6]} 25... Kh7 {[%clk 0:01:07.3]} 26. Ne2 {[%clk 0:01:01.7]}
26... Bf6 {[%clk 0:01:06]} 27. Rac1 {[%clk 0:00:58.7]} 27... Rc8 {[%clk
0:01:02.3]} 28. Qe1 {[%clk 0:00:54.7]} 28... g5 {[%clk 0:00:57.5]} 29. h5 {[%clk
0:00:43.7]} 29... Nb5 {[%clk 0:00:51.1]} 30. Qb4 {[%clk 0:00:36.9]} 30... a6
{[%clk 0:00:41.5]} 31. a4 {[%clk 0:00:34.5]} 31... Be7 {[%clk 0:00:37.3]} 32.
Rxc8 {[%clk 0:00:23.2]} 32... Bxc8 {[%clk 0:00:35.1]} 33. Qd2 {[%clk 0:00:21.4]}
33... Nd6 {[%clk 0:00:34.2]} 34. Ng3 {[%clk 0:00:19.5]} 34... Rf4 {[%clk
0:00:29.9]} 35. Rc1 {[%clk 0:00:16.6]} 35... g4 {[%clk 0:00:29.5]} 36. Be3
{[%clk 0:00:14.8]} 36... Bg5 {[%clk 0:00:27.7]} 37. Qc3 {[%clk 0:00:11.1]} 37...
gxf3 {[%clk 0:00:20.4]} 38. Bxf4 {[%clk 0:00:08.9]} 38... Bxf4 {[%clk 0:00:19]}
39. Qc7+ {[%clk 0:00:08.7]} 39... Qxc7 {[%clk 0:00:11.8]} 40. Rxc7+ {[%clk
0:00:08.1]} 40... Kg8 {[%clk 0:00:12.3]} 41. Ngf1 {[%clk 0:00:05.6]} 41... Bh3
{[%clk 0:00:10.7]} 42. Nxf3 {[%clk 0:00:04.3]} 42... b5 {[%clk 0:00:10.8]} 43.
Rc6 {[%clk 0:00:02.9]} 43... Nxe4 {[%clk 0:00:10.9]} 0-1